[Event "Titled Tuesday Blitz October 18 Late 2022"]
[White "Gubajdullin, Alexei"]
[Black "Storey, Charles H"]
[WhiteFideId "4141202"]
[BlackFideId "406686"]
[WhiteElo "2200"]
[BlackElo "2252"]
[Result "1/2-1/2"]
[Round "10"]
[TimeControl "180+1"]
[Date "2022.10.19"]
[WhiteClock "0:00:09"]
[BlackClock "0:00:05"]

1. d4 {[%clk 0:02:56]}  g6 {[%clk 0:02:59]} 2. Nf3 {[%clk 0:02:56]}  Bg7 {[%clk 0:03:00]} 3. Bf4 {[%clk 0:02:56]}  c6 {[%clk 0:02:58]} 4. Nbd2 {[%clk 0:02:56]}  d5 {[%clk 0:02:55]} 5. e3 {[%clk 0:02:55]}  Nf6 {[%clk 0:02:54]} 6. Be2 {[%clk 0:02:55]}  Nbd7 {[%clk 0:02:54]} 7. h3 {[%clk 0:02:55]}  O-O {[%clk 0:02:53]} 8. O-O {[%clk 0:02:54]}  Re8 {[%clk 0:02:51]} 9. Ne5 {[%clk 0:02:54]}  Nxe5 {[%clk 0:02:51]} 10. Bxe5 {[%clk 0:02:54]}  Nd7 {[%clk 0:02:49]} 11. Bxg7 {[%clk 0:02:54]}  Kxg7 {[%clk 0:02:50]} 12. c4 {[%clk 0:02:54]}  dxc4 {[%clk 0:02:45]} 13. Nxc4 {[%clk 0:02:53]}  Nb6 {[%clk 0:02:41]} 14. Na5 {[%clk 0:02:52]}  Nd5 {[%clk 0:02:38]} 15. Qd2 {[%clk 0:02:49]}  e5 {[%clk 0:02:20]} 16. dxe5 {[%clk 0:02:46]}  Rxe5 {[%clk 0:02:19]} 17. Qd4 {[%clk 0:02:41]}  Qf6 {[%clk 0:02:19]} 18. a3 {[%clk 0:02:29]}  Rg5 {[%clk 0:02:07]} 19. Qxf6+ {[%clk 0:02:27]}  Kxf6 {[%clk 0:02:07]} 20. h4 {[%clk 0:02:24]}  Re5 {[%clk 0:01:58]} 21. b4 {[%clk 0:02:24]}  Nc3 {[%clk 0:01:46]} 22. Bf3 {[%clk 0:02:23]}  Re7 {[%clk 0:01:33]} 23. Rac1 {[%clk 0:02:17]}  Nb5 {[%clk 0:01:30]} 24. a4 {[%clk 0:02:16]}  Nd6 {[%clk 0:01:30]} 25. Rfd1 {[%clk 0:02:16]}  Nf5 {[%clk 0:01:30]} 26. g3 {[%clk 0:02:12]}  Be6 {[%clk 0:01:16]} 27. b5 {[%clk 0:02:11]}  cxb5 {[%clk 0:01:15]} 28. axb5 {[%clk 0:02:11]}  Rb8 {[%clk 0:01:11]} 29. Rd2 {[%clk 0:02:02]}  h6 {[%clk 0:00:47]} 30. Rdc2 {[%clk 0:02:00]}  Nd6 {[%clk 0:00:41]} 31. Rb2 {[%clk 0:01:55]}  Rc8 {[%clk 0:00:32]} 32. Rd1 {[%clk 0:01:51]}  Nc4 {[%clk 0:00:26]} 33. Nxc4 {[%clk 0:01:50]}  Bxc4 {[%clk 0:00:27]} 34. Rd6+ {[%clk 0:01:44]}  Kg7 {[%clk 0:00:19]} 35. h5 {[%clk 0:01:39]}  gxh5 {[%clk 0:00:17]} 36. Bxh5 {[%clk 0:01:34]}  Rc5 {[%clk 0:00:17]} 37. Bf3 {[%clk 0:01:16]}  Rxb5 {[%clk 0:00:16]} 38. Rc2 {[%clk 0:01:15]}  Be6 {[%clk 0:00:16]} 39. Kg2 {[%clk 0:01:13]}  b6 {[%clk 0:00:16]} 40. Rd8 {[%clk 0:01:12]}  Rc5 {[%clk 0:00:15]} 41. Rxc5 {[%clk 0:00:57]}  bxc5 {[%clk 0:00:15]} 42. Rd6 {[%clk 0:00:56]}  Rc7 {[%clk 0:00:13]} 43. Ra6 {[%clk 0:00:55]}  c4 {[%clk 0:00:13]} 44. Be4 {[%clk 0:00:55]}  c3 {[%clk 0:00:13]} 45. Bc2 {[%clk 0:00:55]}  Bd7 {[%clk 0:00:08]} 46. f4 {[%clk 0:00:52]}  Be6 {[%clk 0:00:06]} 47. e4 {[%clk 0:00:51]}  Bc4 {[%clk 0:00:07]} 48. Ra3 {[%clk 0:00:50]}  Bb5 {[%clk 0:00:07]} 49. Kf3 {[%clk 0:00:48]}  a6 {[%clk 0:00:07]} 50. Ke3 {[%clk 0:00:48]}  f6 {[%clk 0:00:08]} 51. Kd4 {[%clk 0:00:47]}  Rc4+ {[%clk 0:00:07]} 52. Ke3 {[%clk 0:00:47]}  h5 {[%clk 0:00:06]} 53. Ra1 {[%clk 0:00:43]}  Rb4 {[%clk 0:00:05]} 54. Rh1 {[%clk 0:00:36]}  Rb2 {[%clk 0:00:05]} 55. Rc1 {[%clk 0:00:35]}  a5 {[%clk 0:00:05]} 56. Kd4 {[%clk 0:00:35]}  a4 {[%clk 0:00:04]} 57. Kxc3 {[%clk 0:00:35]}  Ra2 {[%clk 0:00:04]} 58. Rh1 {[%clk 0:00:34]}  Ra3+ {[%clk 0:00:04]} 59. Kb4 {[%clk 0:00:32]}  Ra2 {[%clk 0:00:04]} 60. Kxb5 {[%clk 0:00:26]}  Rxc2 {[%clk 0:00:05]} 61. Kxa4 {[%clk 0:00:19]}  Kg6 {[%clk 0:00:05]} 62. Kb4 {[%clk 0:00:18]}  Re2 {[%clk 0:00:05]} 63. Kc4 {[%clk 0:00:11]}  Rxe4+ {[%clk 0:00:05]} 64. Kd3 {[%clk 0:00:10]}  Re8 {[%clk 0:00:05]} 65. Rh2 {[%clk 0:00:09]}  Re7 {[%clk 0:00:04]} 66. Rh4 {[%clk 0:00:09]}  Re8 {[%clk 0:00:05]} 67. Rh2 {[%clk 0:00:09]}  Re7 {[%clk 0:00:04]} 68. Rh4 {[%clk 0:00:09]}  Re8 {[%clk 0:00:05]} 69. Rh2 {[%clk 0:00:09]} 1/2-1/2


[Site "https://www.chess.com"]

[Event "Titled Tuesday Blitz October 18 Late 2022"]
[White "Guliyev, Namig"]
[Black "Czernek, Tymon"]
[WhiteFideId "13400363"]
[BlackFideId "1199510"]
[WhiteElo "2526"]
[BlackElo "2240"]
[Result "1-0"]
[Round "10"]
[TimeControl "180+1"]
[Date "2022.10.18"]
[WhiteClock "0:00:43"]
[BlackClock "0:00:14"]

1. e4 {[%clk 0:03:00]}  c5 {[%clk 0:02:52]} 2. Nf3 {[%clk 0:03:00]}  d6 {[%clk 0:02:49]} 3. Bb5+ {[%clk 0:03:00]}  Nd7 {[%clk 0:02:48]} 4. d4 {[%clk 0:02:59]}  cxd4 {[%clk 0:02:49]} 5. Qxd4 {[%clk 0:02:59]}  e5 {[%clk 0:02:45]} 6. Qd3 {[%clk 0:02:57]}  h6 {[%clk 0:02:43]} 7. O-O {[%clk 0:02:45]}  Nf6 {[%clk 0:02:42]} 8. c4 {[%clk 0:02:40]}  Be7 {[%clk 0:02:42]} 9. Nc3 {[%clk 0:02:39]}  O-O {[%clk 0:02:41]} 10. Bxd7 {[%clk 0:02:40]}  Bxd7 {[%clk 0:02:41]} 11. b3 {[%clk 0:02:40]}  a6 {[%clk 0:02:36]} 12. a4 {[%clk 0:02:40]}  Rc8 {[%clk 0:02:22]} 13. Ba3 {[%clk 0:02:39]}  Qb6 {[%clk 0:02:00]} 14. Nxe5 {[%clk 0:02:25]}  Be6 {[%clk 0:01:33]} 15. Nd5 {[%clk 0:02:16]}  Bxd5 {[%clk 0:01:24]} 16. exd5 {[%clk 0:02:16]}  Rfe8 {[%clk 0:01:22]} 17. Nf3 {[%clk 0:02:15]}  Nd7 {[%clk 0:01:22]} 18. a5 {[%clk 0:02:07]}  Qc7 {[%clk 0:01:17]} 19. Bb2 {[%clk 0:02:04]}  Nc5 {[%clk 0:01:08]} 20. Qc2 {[%clk 0:02:03]}  Qd8 {[%clk 0:01:00]} 21. Rfe1 {[%clk 0:02:02]}  Nd7 {[%clk 0:00:57]} 22. g3 {[%clk 0:01:46]}  Bf6 {[%clk 0:00:54]} 23. Rxe8+ {[%clk 0:01:45]}  Qxe8 {[%clk 0:00:55]} 24. Bxf6 {[%clk 0:01:45]}  Nxf6 {[%clk 0:00:56]} 25. Re1 {[%clk 0:01:44]}  Qd8 {[%clk 0:00:52]} 26. Qd2 {[%clk 0:01:39]}  b6 {[%clk 0:00:52]} 27. Ra1 {[%clk 0:01:37]}  Rb8 {[%clk 0:00:50]} 28. Nd4 {[%clk 0:01:36]}  Qc7 {[%clk 0:00:45]} 29. Nc6 {[%clk 0:01:36]}  Re8 {[%clk 0:00:45]} 30. axb6 {[%clk 0:01:26]}  Qxb6 {[%clk 0:00:46]} 31. Qb4 {[%clk 0:01:25]}  Qc7 {[%clk 0:00:41]} 32. Rxa6 {[%clk 0:01:21]}  Qd7 {[%clk 0:00:41]} 33. Ra1 {[%clk 0:01:15]}  Qh3 {[%clk 0:00:40]} 34. Re1 {[%clk 0:01:14]}  Ra8 {[%clk 0:00:19]} 35. Qb7 {[%clk 0:01:06]}  Ra2 {[%clk 0:00:17]} 36. Qc8+ {[%clk 0:01:01]}  Qxc8 {[%clk 0:00:17]} 37. Ne7+ {[%clk 0:01:01]}  Kf8 {[%clk 0:00:16]} 38. Nxc8 {[%clk 0:01:01]}  Rb2 {[%clk 0:00:16]} 39. Nxd6 {[%clk 0:00:58]}  Rxb3 {[%clk 0:00:16]} 40. Kg2 {[%clk 0:00:55]}  Rc3 {[%clk 0:00:16]} 41. h3 {[%clk 0:00:52]}  g6 {[%clk 0:00:16]} 42. g4 {[%clk 0:00:52]}  Kg7 {[%clk 0:00:15]} 43. Re3 {[%clk 0:00:51]}  Rc2 {[%clk 0:00:15]} 44. Kf3 {[%clk 0:00:50]}  g5 {[%clk 0:00:15]} 45. Re7 {[%clk 0:00:44]}  Kg6 {[%clk 0:00:15]} 46. Nxf7 {[%clk 0:00:43]}  Rc3+ {[%clk 0:00:14]} 47. Kg2 {[%clk 0:00:43]} 1-0


[Site "https://www.chess.com"]

[Event "Titled Tuesday Blitz October 18 Late 2022"]
[White "Harvey, Marcus R"]
[Black "Bilych, Olexiy"]
[WhiteFideId "400092"]
[BlackFideId "14156504"]
[WhiteElo "2457"]
[BlackElo "2320"]
[Result "0-1"]
[Round "10"]
[TimeControl "180+1"]
[Date "2022.10.18"]
[WhiteClock "0:00:43"]
[BlackClock "0:01:30"]

1. d4 {[%clk 0:03:00]}  Nf6 {[%clk 0:02:58]} 2. c4 {[%clk 0:03:01]}  c5 {[%clk 0:02:58]} 3. d5 {[%clk 0:03:01]}  e6 {[%clk 0:02:58]} 4. Nc3 {[%clk 0:03:01]}  g6 {[%clk 0:02:57]} 5. dxe6 {[%clk 0:02:59]}  fxe6 {[%clk 0:02:55]} 6. e4 {[%clk 0:02:59]}  Nc6 {[%clk 0:02:53]} 7. f4 {[%clk 0:02:57]}  d6 {[%clk 0:02:47]} 8. Nf3 {[%clk 0:02:54]}  Bg7 {[%clk 0:02:46]} 9. Be2 {[%clk 0:02:51]}  O-O {[%clk 0:02:43]} 10. O-O {[%clk 0:02:51]}  e5 {[%clk 0:02:39]} 11. fxe5 {[%clk 0:02:38]}  dxe5 {[%clk 0:02:40]} 12. Bg5 {[%clk 0:02:38]}  Qxd1 {[%clk 0:02:29]} 13. Raxd1 {[%clk 0:02:32]}  Nd4 {[%clk 0:02:29]} 14. Bxf6 {[%clk 0:02:14]}  Bxf6 {[%clk 0:02:26]} 15. Nxd4 {[%clk 0:02:13]}  exd4 {[%clk 0:02:23]} 16. Nd5 {[%clk 0:02:12]}  Be5 {[%clk 0:02:19]} 17. Rxf8+ {[%clk 0:02:06]}  Kxf8 {[%clk 0:02:20]} 18. Rf1+ {[%clk 0:02:06]}  Kg7 {[%clk 0:02:20]} 19. h3 {[%clk 0:02:01]}  h5 {[%clk 0:02:20]} 20. g4 {[%clk 0:01:53]}  hxg4 {[%clk 0:02:11]} 21. Bxg4 {[%clk 0:01:53]}  Bxg4 {[%clk 0:02:11]} 22. hxg4 {[%clk 0:01:53]}  Rh8 {[%clk 0:02:12]} 23. b4 {[%clk 0:01:44]}  Rh4 {[%clk 0:02:02]} 24. bxc5 {[%clk 0:01:41]}  Rxg4+ {[%clk 0:02:02]} 25. Kf2 {[%clk 0:01:41]}  Rxe4 {[%clk 0:02:00]} 26. Kf3 {[%clk 0:01:31]}  Rh4 {[%clk 0:01:56]} 27. Rb1 {[%clk 0:01:28]}  d3 {[%clk 0:01:49]} 28. Rxb7+ {[%clk 0:01:27]}  Kh6 {[%clk 0:01:48]} 29. Ke3 {[%clk 0:01:13]}  Rxc4 {[%clk 0:01:36]} 30. Rxa7 {[%clk 0:00:53]}  d2 {[%clk 0:01:33]} 31. Kxd2 {[%clk 0:00:43]}  Rd4+ {[%clk 0:01:33]} 32. Kc3 {[%clk 0:00:43]}  Ra4+ {[%clk 0:01:30]} 0-1


[Site "https://www.chess.com"]

[Event "Titled Tuesday Blitz October 18 Late 2022"]
[White "Ibadov, Dashgyn"]
[Black "Papasimakopoulos, Alexandros"]
[WhiteFideId "24107514"]
[BlackFideId "4244125"]
[WhiteElo "2208"]
[BlackElo "2357"]
[Result "0-1"]
[Round "10"]
[TimeControl "180+1"]
[Date "2022.10.18"]
[WhiteClock "0:00:01"]
[BlackClock "0:00:49"]

1. e4 {[%clk 0:03:00]}  e6 {[%clk 0:02:57]} 2. d4 {[%clk 0:03:00]}  d5 {[%clk 0:02:50]} 3. Nc3 {[%clk 0:03:00]}  Bb4 {[%clk 0:02:49]} 4. e5 {[%clk 0:03:00]}  b6 {[%clk 0:02:49]} 5. a3 {[%clk 0:02:53]}  Bf8 {[%clk 0:02:49]} 6. Qg4 {[%clk 0:02:51]}  Ne7 {[%clk 0:02:46]} 7. Nf3 {[%clk 0:02:50]}  Qd7 {[%clk 0:02:46]} 8. h4 {[%clk 0:02:43]}  Ba6 {[%clk 0:02:45]} 9. Bxa6 {[%clk 0:02:43]}  h5 {[%clk 0:02:44]} 10. Qf4 {[%clk 0:02:32]}  Nxa6 {[%clk 0:02:41]} 11. Be3 {[%clk 0:02:15]}  Nf5 {[%clk 0:02:36]} 12. Ng5 {[%clk 0:01:57]}  O-O-O {[%clk 0:02:26]} 13. O-O-O {[%clk 0:01:30]}  Nb8 {[%clk 0:02:20]} 14. Ne2 {[%clk 0:01:25]}  f6 {[%clk 0:02:16]} 15. Nf3 {[%clk 0:01:25]}  Nc6 {[%clk 0:02:15]} 16. Ng3 {[%clk 0:01:22]}  Nce7 {[%clk 0:02:14]} 17. Nxf5 {[%clk 0:01:20]}  Nxf5 {[%clk 0:02:13]} 18. g4 {[%clk 0:01:09]}  hxg4 {[%clk 0:02:13]} 19. Qxg4 {[%clk 0:01:10]}  Kb7 {[%clk 0:02:11]} 20. h5 {[%clk 0:01:09]}  Qf7 {[%clk 0:02:04]} 21. Bf4 {[%clk 0:01:06]}  Be7 {[%clk 0:02:01]} 22. Rdg1 {[%clk 0:00:51]}  Rdg8 {[%clk 0:01:57]} 23. Qg6 {[%clk 0:00:46]}  Qxg6 {[%clk 0:01:52]} 24. Rxg6 {[%clk 0:00:47]}  Rf8 {[%clk 0:01:47]} 25. c3 {[%clk 0:00:32]}  Rh7 {[%clk 0:01:45]} 26. exf6 {[%clk 0:00:23]}  gxf6 {[%clk 0:01:44]} 27. h6 {[%clk 0:00:20]}  Kc8 {[%clk 0:01:42]} 28. Kd2 {[%clk 0:00:18]}  Kd7 {[%clk 0:01:42]} 29. Kd3 {[%clk 0:00:19]}  Ke8 {[%clk 0:01:38]} 30. Re1 {[%clk 0:00:13]}  Kf7 {[%clk 0:01:38]} 31. Rg2 {[%clk 0:00:09]}  c5 {[%clk 0:01:38]} 32. dxc5 {[%clk 0:00:08]}  bxc5 {[%clk 0:01:38]} 33. c4 {[%clk 0:00:08]}  d4 {[%clk 0:01:27]} 34. Rh2 {[%clk 0:00:06]}  a5 {[%clk 0:01:23]} 35. Nh4 {[%clk 0:00:04]}  Nxh4 {[%clk 0:01:21]} 36. Rxh4 {[%clk 0:00:04]}  e5 {[%clk 0:01:21]} 37. Bc1 {[%clk 0:00:03]}  a4 {[%clk 0:01:22]} 38. f4 {[%clk 0:00:03]}  f5 {[%clk 0:01:19]} 39. Rh5 {[%clk 0:00:02]}  e4+ {[%clk 0:01:20]} 40. Kc2 {[%clk 0:00:02]}  Kg6 {[%clk 0:01:16]} 41. Reh1 {[%clk 0:00:02]}  Rg8 {[%clk 0:01:14]} 42. R5h3 {[%clk 0:00:01]}  Kf6 {[%clk 0:01:14]} 43. b3 {[%clk 0:00:01]}  axb3+ {[%clk 0:01:13]} 44. Kxb3 {[%clk 0:00:01]}  e3 {[%clk 0:01:02]} 45. a4 {[%clk 0:00:01]}  Bd6 {[%clk 0:01:02]} 46. a5 {[%clk 0:00:01]}  Bxf4 {[%clk 0:01:02]} 47. Ka4 {[%clk 0:00:02]}  Rb8 {[%clk 0:01:00]} 48. Ba3 {[%clk 0:00:02]}  Bd6 {[%clk 0:01:00]} 49. a6 {[%clk 0:00:02]}  f4 {[%clk 0:00:59]} 50. Ka5 {[%clk 0:00:01]}  d3 {[%clk 0:00:58]} 51. Rh5 {[%clk 0:00:01]}  d2 {[%clk 0:00:56]} 52. Rd5 {[%clk 0:00:02]}  Ke6 {[%clk 0:00:56]} 53. Rhh5 {[%clk 0:00:01]}  Ra7 {[%clk 0:00:50]} 54. Bxc5 {[%clk 0:00:01]}  Bc7+ {[%clk 0:00:49]} 0-1


[Site "https://www.chess.com"]

[Event "Titled Tuesday Blitz October 18 Late 2022"]
[White "Jaferian, Koosha"]
[Black "Decuigniere, Tom"]
[WhiteFideId "12507440"]
[BlackFideId "26093820"]
[WhiteElo "2127"]
[BlackElo "2223"]
[Result "1/2-1/2"]
[Round "10"]
[TimeControl "180+1"]
[Date "2022.10.18"]
[WhiteClock "0:00:10"]
[BlackClock "0:00:17"]

1. Nf3 {[%clk 0:03:00]}  c5 {[%clk 0:03:00]} 2. b3 {[%clk 0:03:01]}  g6 {[%clk 0:03:01]} 3. Bb2 {[%clk 0:03:01]}  Nf6 {[%clk 0:03:01]} 4. c4 {[%clk 0:03:01]}  Bg7 {[%clk 0:03:01]} 5. g3 {[%clk 0:03:02]}  O-O {[%clk 0:03:02]} 6. Bg2 {[%clk 0:03:02]}  Nc6 {[%clk 0:03:02]} 7. O-O {[%clk 0:03:02]}  b6 {[%clk 0:02:56]} 8. d4 {[%clk 0:03:02]}  cxd4 {[%clk 0:02:56]} 9. Nxd4 {[%clk 0:03:03]}  Bb7 {[%clk 0:02:56]} 10. Nc3 {[%clk 0:03:03]}  Qc8 {[%clk 0:02:51]} 11. Nc2 {[%clk 0:02:57]}  d6 {[%clk 0:02:49]} 12. Ne3 {[%clk 0:02:54]}  Ne5 {[%clk 0:02:45]} 13. Qd2 {[%clk 0:02:47]}  Bxg2 {[%clk 0:02:44]} 14. Kxg2 {[%clk 0:02:48]}  Qb7+ {[%clk 0:02:44]} 15. f3 {[%clk 0:02:49]}  a6 {[%clk 0:02:43]} 16. Ned5 {[%clk 0:02:44]}  b5 {[%clk 0:02:39]} 17. Nxf6+ {[%clk 0:02:36]}  Bxf6 {[%clk 0:02:36]} 18. Nd5 {[%clk 0:02:36]}  Bg7 {[%clk 0:02:33]} 19. cxb5 {[%clk 0:02:04]}  axb5 {[%clk 0:02:31]} 20. e4 {[%clk 0:02:04]}  Rfc8 {[%clk 0:02:15]} 21. f4 {[%clk 0:01:50]}  Ng4 {[%clk 0:02:08]} 22. Bxg7 {[%clk 0:01:50]}  Kxg7 {[%clk 0:02:09]} 23. h3 {[%clk 0:01:47]}  Nf6 {[%clk 0:02:05]} 24. Qd4 {[%clk 0:01:40]}  Rc2+ {[%clk 0:01:58]} 25. Rf2 {[%clk 0:01:40]}  Rxf2+ {[%clk 0:01:57]} 26. Kxf2 {[%clk 0:01:41]}  Qc6 {[%clk 0:01:40]} 27. g4 {[%clk 0:01:26]}  Qc2+ {[%clk 0:01:34]} 28. Kf3 {[%clk 0:01:27]}  Rxa2 {[%clk 0:01:00]} 29. Rxa2 {[%clk 0:01:19]}  Qxa2 {[%clk 0:01:00]} 30. g5 {[%clk 0:01:19]}  Qxb3+ {[%clk 0:01:01]} 31. Ne3 {[%clk 0:01:10]}  Qe6 {[%clk 0:00:53]} 32. gxf6+ {[%clk 0:01:10]}  exf6 {[%clk 0:00:45]} 33. f5 {[%clk 0:01:05]}  Qe5 {[%clk 0:00:34]} 34. Qxe5 {[%clk 0:01:03]}  fxe5 {[%clk 0:00:26]} 35. Nd5 {[%clk 0:00:40]}  h5 {[%clk 0:00:26]} 36. f6+ {[%clk 0:00:24]}  Kh6 {[%clk 0:00:25]} 37. h4 {[%clk 0:00:18]}  g5 {[%clk 0:00:24]} 38. Kg3 {[%clk 0:00:18]}  Kg6 {[%clk 0:00:23]} 39. Kh3 {[%clk 0:00:12]}  Kh6 {[%clk 0:00:22]} 40. Kg3 {[%clk 0:00:13]}  Kg6 {[%clk 0:00:22]} 41. Kh3 {[%clk 0:00:13]}  Kh6 {[%clk 0:00:23]} 42. hxg5+ {[%clk 0:00:09]}  Kxg5 {[%clk 0:00:23]} 43. Kg3 {[%clk 0:00:09]}  b4 {[%clk 0:00:09]} 44. Nxb4 {[%clk 0:00:09]}  Kxf6 {[%clk 0:00:10]} 45. Kh4 {[%clk 0:00:07]}  Ke6 {[%clk 0:00:10]} 46. Kg5 {[%clk 0:00:06]}  h4 {[%clk 0:00:10]} 47. Kxh4 {[%clk 0:00:04]}  f5 {[%clk 0:00:10]} 48. exf5+ {[%clk 0:00:05]}  Kxf5 {[%clk 0:00:11]} 49. Kg3 {[%clk 0:00:05]}  Ke4 {[%clk 0:00:12]} 50. Kf2 {[%clk 0:00:06]}  Kd4 {[%clk 0:00:08]} 51. Ke2 {[%clk 0:00:04]}  Kc3 {[%clk 0:00:08]} 52. Nd5+ {[%clk 0:00:04]}  Kd4 {[%clk 0:00:09]} 53. Nf6 {[%clk 0:00:05]}  d5 {[%clk 0:00:09]} 54. Nxd5 {[%clk 0:00:05]}  Kxd5 {[%clk 0:00:10]} 55. Kd3 {[%clk 0:00:06]}  e4+ {[%clk 0:00:10]} 56. Ke3 {[%clk 0:00:06]}  Ke5 {[%clk 0:00:11]} 57. Ke2 {[%clk 0:00:07]}  Kd4 {[%clk 0:00:12]} 58. Kd2 {[%clk 0:00:07]}  e3+ {[%clk 0:00:13]} 59. Ke2 {[%clk 0:00:08]}  Ke4 {[%clk 0:00:14]} 60. Ke1 {[%clk 0:00:09]}  Kd3 {[%clk 0:00:15]} 61. Kd1 {[%clk 0:00:09]}  e2+ {[%clk 0:00:16]} 62. Ke1 {[%clk 0:00:10]}  Ke3 {[%clk 0:00:17]} 1/2-1/2


[Site "https://www.chess.com"]

[Event "Titled Tuesday Blitz October 18 Late 2022"]
[White "Jaracz, Pawel"]
[Black "Girsh, Daniel"]
[WhiteFideId "1102222"]
[BlackFideId "30949190"]
[WhiteElo "2459"]
[BlackElo "2075"]
[Result "1-0"]
[Round "10"]
[TimeControl "180+1"]
[Date "2022.10.18"]
[WhiteClock "0:00:20"]
[BlackClock "0:00:06"]

1. d3 {[%clk 0:03:00]}  d5 {[%clk 0:02:59]} 2. Nf3 {[%clk 0:02:59]}  g6 {[%clk 0:02:58]} 3. Nbd2 {[%clk 0:02:59]}  Bg7 {[%clk 0:02:58]} 4. e4 {[%clk 0:02:59]}  d4 {[%clk 0:02:56]} 5. g3 {[%clk 0:02:59]}  Nc6 {[%clk 0:02:55]} 6. Bg2 {[%clk 0:02:59]}  e5 {[%clk 0:02:56]} 7. O-O {[%clk 0:02:59]}  Nge7 {[%clk 0:02:56]} 8. Nh4 {[%clk 0:02:51]}  O-O {[%clk 0:02:55]} 9. f4 {[%clk 0:02:50]}  f5 {[%clk 0:02:55]} 10. Ndf3 {[%clk 0:02:38]}  fxe4 {[%clk 0:02:52]} 11. dxe4 {[%clk 0:02:37]}  exf4 {[%clk 0:02:50]} 12. gxf4 {[%clk 0:02:37]}  Bh6 {[%clk 0:02:01]} 13. Ng5 {[%clk 0:02:22]}  Bxg5 {[%clk 0:02:00]} 14. fxg5 {[%clk 0:02:22]}  Rxf1+ {[%clk 0:01:59]} 15. Qxf1 {[%clk 0:02:21]}  Ne5 {[%clk 0:01:55]} 16. Nf3 {[%clk 0:02:08]}  N7c6 {[%clk 0:01:53]} 17. Nxe5 {[%clk 0:02:06]}  Nxe5 {[%clk 0:01:54]} 18. Bf4 {[%clk 0:02:05]}  Qe7 {[%clk 0:01:48]} 19. Rd1 {[%clk 0:01:55]}  c5 {[%clk 0:01:33]} 20. c3 {[%clk 0:01:55]}  Bg4 {[%clk 0:01:33]} 21. cxd4 {[%clk 0:01:46]}  Bxd1 {[%clk 0:01:14]} 22. Bxe5 {[%clk 0:01:46]}  Bg4 {[%clk 0:01:10]} 23. Bf6 {[%clk 0:01:44]}  Qd6 {[%clk 0:00:57]} 24. d5 {[%clk 0:01:42]}  Qb6 {[%clk 0:00:54]} 25. e5 {[%clk 0:01:31]}  c4+ {[%clk 0:00:53]} 26. Kh1 {[%clk 0:01:30]}  Qe3 {[%clk 0:00:41]} 27. e6 {[%clk 0:01:28]}  Rc8 {[%clk 0:00:31]} 28. h3 {[%clk 0:01:16]}  Bf5 {[%clk 0:00:29]} 29. Qf3 {[%clk 0:00:44]}  Qxf3 {[%clk 0:00:27]} 30. Bxf3 {[%clk 0:00:44]}  b5 {[%clk 0:00:25]} 31. a3 {[%clk 0:00:39]}  a5 {[%clk 0:00:25]} 32. Bc3 {[%clk 0:00:40]}  b4 {[%clk 0:00:11]} 33. axb4 {[%clk 0:00:39]}  axb4 {[%clk 0:00:10]} 34. Bxb4 {[%clk 0:00:40]}  Rb8 {[%clk 0:00:11]} 35. Bc3 {[%clk 0:00:39]}  Kf8 {[%clk 0:00:11]} 36. Bf6 {[%clk 0:00:27]}  Rb3 {[%clk 0:00:10]} 37. Kg2 {[%clk 0:00:27]}  Ke8 {[%clk 0:00:05]} 38. h4 {[%clk 0:00:24]}  Rd3 {[%clk 0:00:05]} 39. Kf2 {[%clk 0:00:23]}  Rd2+ {[%clk 0:00:05]} 40. Ke3 {[%clk 0:00:23]}  Rd3+ {[%clk 0:00:05]} 41. Kf4 {[%clk 0:00:23]}  Rd2 {[%clk 0:00:03]} 42. h5 {[%clk 0:00:22]}  Rd3 {[%clk 0:00:02]} 43. h6 {[%clk 0:00:22]}  Rd2 {[%clk 0:00:02]} 44. Bc3 {[%clk 0:00:22]}  Rd3 {[%clk 0:00:02]} 45. Be2 {[%clk 0:00:20]}  Ke7 {[%clk 0:00:03]} 46. Bxd3 {[%clk 0:00:20]}  Bxd3 {[%clk 0:00:04]} 47. Ke5 {[%clk 0:00:20]}  Bf5 {[%clk 0:00:05]} 48. Bb4+ {[%clk 0:00:20]}  Ke8 {[%clk 0:00:05]} 49. d6 {[%clk 0:00:20]}  c3 {[%clk 0:00:05]} 50. d7+ {[%clk 0:00:20]}  Kd8 {[%clk 0:00:05]} 51. Ba5+ {[%clk 0:00:20]}  Ke7 {[%clk 0:00:06]} 52. d8=Q# {[%clk 0:00:20]} 1-0


[Site "https://www.chess.com"]

[Event "Titled Tuesday Blitz October 18 Late 2022"]
[White "Jean Louis, Marckens"]
[Black "Rose, Felix"]
[WhiteFideId "11900270"]
[BlackFideId "5105722"]
[WhiteElo "2030"]
[BlackElo "2039"]
[Result "1/2-1/2"]
[Round "10"]
[TimeControl "180+1"]
[Date "2022.10.19"]
[WhiteClock "0:01:37"]
[BlackClock "0:00:11"]

1. d4 {[%clk 0:02:52]}  d5 {[%clk 0:02:59]} 2. Nf3 {[%clk 0:02:51]}  Nf6 {[%clk 0:02:59]} 3. c3 {[%clk 0:02:51]}  e6 {[%clk 0:02:55]} 4. Bg5 {[%clk 0:02:51]}  c5 {[%clk 0:02:54]} 5. e3 {[%clk 0:02:51]}  Be7 {[%clk 0:02:49]} 6. Nbd2 {[%clk 0:02:50]}  O-O {[%clk 0:02:48]} 7. Bd3 {[%clk 0:02:50]}  Nc6 {[%clk 0:02:45]} 8. O-O {[%clk 0:02:49]}  Qc7 {[%clk 0:02:45]} 9. Re1 {[%clk 0:02:49]}  Re8 {[%clk 0:02:45]} 10. Rc1 {[%clk 0:02:47]}  h6 {[%clk 0:02:44]} 11. Bf4 {[%clk 0:02:46]}  Bd6 {[%clk 0:02:42]} 12. Bxd6 {[%clk 0:02:46]}  Qxd6 {[%clk 0:02:43]} 13. e4 {[%clk 0:02:44]}  dxe4 {[%clk 0:02:34]} 14. Nxe4 {[%clk 0:02:44]}  Nxe4 {[%clk 0:02:32]} 15. Bxe4 {[%clk 0:02:45]}  cxd4 {[%clk 0:02:33]} 16. Bxc6 {[%clk 0:02:45]}  Qxc6 {[%clk 0:02:27]} 17. cxd4 {[%clk 0:02:45]}  Qb6 {[%clk 0:02:19]} 18. Ne5 {[%clk 0:02:44]}  Rd8 {[%clk 0:02:00]} 19. Qf3 {[%clk 0:02:41]}  f6 {[%clk 0:01:52]} 20. Ng6 {[%clk 0:02:41]}  Qxd4 {[%clk 0:01:29]} 21. Rcd1 {[%clk 0:02:37]}  Qb6 {[%clk 0:01:28]} 22. h4 {[%clk 0:02:25]}  Bd7 {[%clk 0:01:11]} 23. b3 {[%clk 0:02:17]}  e5 {[%clk 0:00:48]} 24. Qd5+ {[%clk 0:02:12]}  Be6 {[%clk 0:00:42]} 25. Qe4 {[%clk 0:02:10]}  Rxd1 {[%clk 0:00:19]} 26. Rxd1 {[%clk 0:02:09]}  Rd8 {[%clk 0:00:19]} 27. Rxd8+ {[%clk 0:02:02]}  Qxd8 {[%clk 0:00:20]} 28. Qxb7 {[%clk 0:02:02]}  Qd1+ {[%clk 0:00:20]} 29. Kh2 {[%clk 0:02:02]}  Qg4 {[%clk 0:00:20]} 30. Qb8+ {[%clk 0:01:59]}  Kf7 {[%clk 0:00:12]} 31. Nh8+ {[%clk 0:01:59]}  Ke7 {[%clk 0:00:13]} 32. Qxa7+ {[%clk 0:01:58]}  Bd7 {[%clk 0:00:13]} 33. Qc5+ {[%clk 0:01:57]}  Kd8 {[%clk 0:00:11]} 34. Nf7+ {[%clk 0:01:56]}  Ke8 {[%clk 0:00:12]} 35. Nd6+ {[%clk 0:01:56]}  Kd8 {[%clk 0:00:12]} 36. g3 {[%clk 0:01:53]}  Qf3 {[%clk 0:00:12]} 37. Qe3 {[%clk 0:01:40]}  Qxe3 {[%clk 0:00:10]} 38. fxe3 {[%clk 0:01:40]}  Kc7 {[%clk 0:00:09]} 39. Nc4 {[%clk 0:01:40]}  Be6 {[%clk 0:00:09]} 40. Nd2 {[%clk 0:01:40]}  Kc6 {[%clk 0:00:09]} 41. Kg2 {[%clk 0:01:41]}  Kc5 {[%clk 0:00:10]} 42. a3 {[%clk 0:01:40]}  f5 {[%clk 0:00:11]} 43. Kf2 {[%clk 0:01:39]}  g5 {[%clk 0:00:11]} 44. hxg5 {[%clk 0:01:40]}  hxg5 {[%clk 0:00:11]} 45. Ke2 {[%clk 0:01:41]}  Bf7 {[%clk 0:00:11]} 46. Kd3 {[%clk 0:01:41]}  Bd5 {[%clk 0:00:10]} 47. Kc3 {[%clk 0:01:35]}  f4 {[%clk 0:00:10]} 48. exf4 {[%clk 0:01:36]}  exf4 {[%clk 0:00:10]} 49. gxf4 {[%clk 0:01:37]}  gxf4 {[%clk 0:00:11]} 50. Kd3 {[%clk 0:01:38]}  Kb5 {[%clk 0:00:10]} 51. Kd4 {[%clk 0:01:37]}  Bxb3 {[%clk 0:00:10]} 52. Nxb3 {[%clk 0:01:35]}  Ka4 {[%clk 0:00:10]} 53. Nd2 {[%clk 0:01:36]}  Kxa3 {[%clk 0:00:11]} 54. Ke4 {[%clk 0:01:36]}  Kb2 {[%clk 0:00:11]} 55. Kxf4 {[%clk 0:01:37]} 1/2-1/2


[Site "https://www.chess.com"]